fUST/lending_fUST_20250505
["ID","MTS","AMOUNT","RATE_DAILY","PERIOD"]
[359931967,1746431457858,-400.0,0.00036986,14]
[359931968,1746431457868,-402.72,0.00036986,14]
[359931969,1746431457877,-168.214865,0.00036986,14]
[359931970,1746431457887,-168.214865,0.00036986,14]
[359931971,1746431457899,-151.0,0.00036986,14]
[359931972,1746431457977,-533.19,0.00036986,14]
[359931973,1746431457987,-400.0,0.00036986,14]
[359931974,1746431457996,-400.0,0.00036986,14]
[359931975,1746431458005,-657.78,0.00036986,14]
[359931976,1746431458015,-400.0,0.00036986,14]
[359931977,1746431458025,-3148.33,0.00036986,14]
[359931978,1746431458035,-400.0,0.00036986,14]
[359931979,1746431458044,-400.0,0.00036986,14]
[359931980,1746431458054,-400.0,0.00036986,14]
[359931981,1746431458064,-708.598573,0.00036986,14]
[359931982,1746431458074,-400.0,0.00036986,14]
[359931983,1746431458084,-400.0,0.00036986,14]
[359931984,1746431458094,-151.0,0.00036986,14]
[359931985,1746431458104,-708.598573,0.00036986,14]
[359931986,1746431458113,-400.0,0.00036986,14]
[359931987,1746431458122,-520.25,0.00036986,14]
[359931988,1746431458132,-1424.37,0.00036986,14]
[359931989,1746431458142,-400.0,0.00036986,14]
[359931990,1746431458152,-514.9,0.00036986,14]
[359931991,1746431458162,-2867.55,0.00036986,14]
[359931992,1746431458171,-400.0,0.00036986,14]
[359931993,1746431458181,-471.11,0.00036986,14]
[359931994,1746431458190,-400.0,0.00036986,14]
[359931995,1746431458200,-727.17,0.00036986,14]
[359931996,1746431458209,-2092.45,0.00036986,14]
[359931997,1746431458219,-151.0,0.00036986,14]
[359931998,1746431458229,-1835.12,0.00036986,14]
[359931999,1746431458238,-400.0,0.00036986,14]
[359932000,1746431458248,-3261.67,0.00036986,14]
[359932001,1746431458258,-1081.5,0.00036986,14]
[359932002,1746431458268,-6831.86,0.00036986,14]
[359932003,1746431458277,-400.0,0.00036986,14]
[359932004,1746431458287,-201.927658,0.00036986,14]
[359932005,1746431458296,-551.86,0.00036986,14]
[359932006,1746431458306,-423.41,0.00036986,14]
[359932007,1746431458315,-5354.805601,0.00036986,2]
[359932008,1746431458325,-400.0,0.00036986,14]
[359932009,1746431458335,-760.49,0.00036986,14]
[359932010,1746431458346,-5354.805601,0.00036986,2]
[359932011,1746431458356,-400.0,0.00036986,14]
[359932012,1746431458366,-3375.42,0.00036986,14]
[359932013,1746431458376,-3084.1,0.00036986,14]
[359932014,1746431458386,-537.19,0.00036986,14]
[359932015,1746431458395,-400.0,0.00036986,14]
[359932016,1746431458405,-400.0,0.00036986,14]
[359932017,1746431458415,-582.03,0.00036986,14]
[359932018,1746431458425,-561.7,0.00036986,14]
[359932019,1746431458435,-2861.16,0.00036986,14]
[359932020,1746431458444,-151.0,0.00036986,14]
[359932021,1746431458453,-960.8,0.00036986,14]
[359932022,1746431458463,-151.0,0.00036986,14]
[359932023,1746431458472,-1245.99,0.00036986,14]
[359932024,1746431458482,-400.0,0.00036986,14]
[359932025,1746431458491,-400.0,0.00036986,14]
[359932026,1746431458500,-400.0,0.00036986,14]
[359932027,1746431458510,-917.15,0.00036986,14]
[359932028,1746431458520,-798.63,0.00036986,14]
[359932029,1746431458530,-400.0,0.00036986,14]
[359932030,1746431458539,-2164.37,0.00036986,14]
[359932031,1746431458549,-154.048972,0.00036986,14]
[359932032,1746431458559,-156.869992,0.0003699,14]
[359932033,1746431458569,-284.313164,0.0003699,14]
[359932034,1746431458578,-151.0,0.0003699,14]
[359932035,1746431458587,-198.089713,0.0003699,2]
[359932036,1746431458597,-151.0,0.0003699,14]
[359932037,1746431458606,-198.089713,0.0003699,2]
[359932038,1746431458615,-151.0,0.0003699,14]
[359932039,1746431458625,-224.275852,0.0003699,14]
[359932040,1746431458635,-224.275852,0.0003699,14]
[359932041,1746431458644,-164.740979,0.0003699,14]
[359932042,1746431458654,-151.0,0.0003699,14]
[359932043,1746431458663,-151.0,0.0003699,14]
[359932044,1746431458673,-151.0,0.0003699,14]
[359932045,1746431458683,-311.093798,0.0003699,14]
[359932046,1746431458692,-311.093798,0.0003699,14]
[359932047,1746431458702,-1724.0,0.00037,7]
[359932048,1746431458711,-749.37037271,0.00037038,36]
[359932049,1746431458720,-5061.5,0.000371,30]
[359932050,1746431458730,-700.0,0.00037178,60]
[359932051,1746431458740,-1677.2,0.000372,30]
[359932052,1746431458750,-170.509308,0.00037246,2]
[359932053,1746431458760,-449.91,0.0003726,14]
[359932054,1746431458770,-400.0,0.0003726,14]
[359932055,1746431458779,-313.99613638,0.0003726,14]
[359932056,1746431458789,-400.0,0.0003726,14]
[359932057,1746431458799,-400.0,0.0003726,14]
[359932058,1746431458809,-400.0,0.0003726,14]
[359932059,1746431458819,-400.0,0.0003726,14]
[359932060,1746431458829,-400.0,0.0003726,14]
[359932061,1746431458839,-400.0,0.0003726,14]
[359932062,1746431458849,-400.0,0.0003726,14]
[359932063,1746431458859,-620.35,0.0003726,14]
[359932064,1746431458868,-1058.09,0.0003726,14]
[359932065,1746431458878,-400.0,0.0003726,14]
[359932066,1746431458888,-413.91,0.0003726,14]
[359932067,1746431458897,-356.80548335,0.0003726,14]
[359932068,1746431458907,-400.0,0.0003726,14]
[359932069,1746431458917,-400.0,0.0003726,14]
[359932070,1746431458926,-400.0,0.0003726,14]
[359932071,1746431458936,-400.0,0.0003726,14]
[359932072,1746431458947,-400.0,0.0003726,14]
[359932073,1746431458957,-400.0,0.0003726,14]
[359932074,1746431458968,-400.0,0.0003726,14]
[359932075,1746431458978,-400.0,0.0003726,14]
[359932076,1746431458988,-919.39,0.0003726,14]
[359932077,1746431458997,-400.0,0.0003726,14]
[359932078,1746431459007,-154.525406,0.0003726,14]
[359932079,1746431459017,-430.77,0.0003726,14]
[359932080,1746431459026,-567.54,0.0003726,14]
[359932081,1746431459036,-1065.94,0.0003726,2]
[359932082,1746431459045,-400.0,0.0003726,14]
[359932083,1746431459055,-151.0,0.0003726,14]
[359932084,1746431459064,-151.0,0.0003726,14]
[359932085,1746431459074,-406.59919635,0.0003726,14]
[359932086,1746431459084,-311.093798,0.0003726,14]
[359932087,1746431459094,-457.96834738,0.0003726,14]
[359932088,1746431459104,-400.0,0.0003726,14]
[359932089,1746431459181,-311.093798,0.0003726,14]
[359932090,1746431459191,-541.06,0.0003726,14]
[359932091,1746431459201,-400.0,0.0003726,14]
[359932092,1746431459211,-1390.66,0.0003726,14]
[359932093,1746431459220,-324.92442627,0.0003726,14]
[359932094,1746431459230,-400.0,0.0003726,14]
[359932095,1746431459239,-400.0,0.0003726,14]
[359932096,1746431459249,-400.0,0.0003726,14]
[359932097,1746431459258,-400.0,0.0003726,14]
[359932098,1746431459267,-418.95,0.0003726,14]
[359932099,1746431459277,-689.44,0.0003726,14]
[359932100,1746431459286,-400.0,0.0003726,14]
[359932101,1746431459295,-400.0,0.0003726,14]
[359932102,1746431459304,-403.91,0.0003726,14]
[359932103,1746431459314,-400.0,0.0003726,14]
[359932104,1746431459323,-2422.87,0.0003726,14]
[359932105,1746431459332,-593.8,0.0003726,14]
[359932106,1746431459345,-400.0,0.0003726,14]
[359932107,1746431459355,-400.0,0.0003726,14]
[359932108,1746431459364,-400.0,0.0003726,14]
[359932109,1746431459373,-400.0,0.0003726,14]
[359932110,1746431459382,-874.22,0.0003726,14]
[359932111,1746431459391,-400.0,0.0003726,14]
[359932112,1746431459401,-151.0,0.0003726,14]
[359932113,1746431459410,-324.406642,0.0003726,14]
[359932114,1746431459419,-324.406642,0.0003726,14]
[359932115,1746431459428,-175.388768,0.0003726,14]
[359932116,1746431459437,-175.388768,0.0003726,14]
[359932117,1746431459446,-467.43,0.0003726,14]
[359932118,1746431459456,-400.0,0.0003726,14]
[359932119,1746431459466,-151.0,0.0003726,14]
[359932120,1746431459476,-478.31,0.0003726,14]
[359932121,1746431459486,-151.0,0.0003726,14]
[359932122,1746431459495,-400.0,0.0003726,14]
[359932123,1746431459504,-435.39345782,0.0003726,14]
[359932124,1746431459513,-400.0,0.0003726,14]
[359932125,1746431459522,-400.0,0.0003726,14]
[359932126,1746431459532,-400.0,0.0003726,14]
[359932127,1746431459541,-444.04,0.0003726,14]
[359932128,1746431459549,-400.0,0.0003726,14]
[359932129,1746431459558,-518.59,0.0003726,14]
[359932130,1746431459568,-400.0,0.0003726,14]
[359932131,1746431459577,-1222.27,0.0003726,14]
[359932132,1746431459586,-400.0,0.0003726,14]
[359932133,1746431459596,-1484.31,0.0003726,14]
[359932134,1746431459605,-1181.94,0.0003726,14]
[359932135,1746431459614,-400.0,0.0003726,14]
[359932136,1746431459624,-400.0,0.0003726,14]
[359932137,1746431459633,-156.6,0.0003726,14]
[359932138,1746431459642,-151.0,0.0003726,14]
[359932139,1746431459652,-151.0,0.0003726,14]
[359932140,1746431459663,-2007.85,0.0003726,14]
[359932141,1746431459672,-400.0,0.0003726,14]
[359932142,1746431459681,-524.96,0.0003726,14]
[359932143,1746431459690,-676.94,0.0003726,14]
[359932144,1746431459700,-400.0,0.0003726,14]
[359932145,1746431459710,-819.404056,0.0003726,14]
[359932146,1746431459719,-594.21,0.0003726,14]
[359932147,1746431459730,-819.404056,0.0003726,14]
[359932148,1746431459739,-5636.69,0.0003726,14]
[359932149,1746431459748,-400.0,0.0003726,14]
[359932150,1746431459758,-307.36,0.0003726,14]
[359932151,1746431459767,-400.0,0.0003726,14]
[359932152,1746431459777,-577.87,0.0003726,14]
[359932153,1746431459787,-253.131864,0.0003726,14]
[359932154,1746431459796,-2214.19,0.0003726,14]
[359932155,1746431459806,-253.131864,0.0003726,14]
[359932156,1746431459816,-439.27,0.0003726,14]
[359932157,1746431459825,-400.0,0.0003726,14]
[359932158,1746431459835,-601.23,0.0003726,14]
[359932159,1746431459845,-400.0,0.0003726,14]
[359932160,1746431459854,-400.0,0.0003726,14]
[359932161,1746431459864,-400.0,0.0003726,14]
[359932162,1746431459873,-402.72,0.0003726,14]
[359932163,1746431459883,-533.19,0.0003726,14]
[359932164,1746431459893,-400.0,0.0003726,14]
[359932165,1746431459903,-657.78,0.0003726,14]
[359932166,1746431459912,-400.0,0.0003726,14]
[359932167,1746431459922,-3148.33,0.0003726,14]
[359932168,1746431459932,-400.0,0.0003726,14]
[359932169,1746431459942,-400.0,0.0003726,14]
[359932170,1746431459951,-400.0,0.0003726,14]
[359932171,1746431459960,-400.0,0.0003726,14]
[359932172,1746431459970,-363.76406202,0.0003726,14]
[359932173,1746431459986,-215.433333,0.0003726,14]
[359932174,1746431459995,-400.0,0.0003726,14]
[359932175,1746431460006,-520.25,0.0003726,14]
[359932176,1746431460016,-1424.37,0.0003726,14]
[359932177,1746431460026,-400.0,0.0003726,14]
[359932178,1746431460036,-514.9,0.0003726,14]
[359932179,1746431460047,-2867.55,0.0003726,14]
[359932180,1746431460057,-471.11,0.0003726,14]
[359932181,1746431460067,-400.0,0.0003726,14]
[359932182,1746431460077,-727.17,0.0003726,14]
[359932183,1746431460088,-2092.45,0.0003726,14]
[359932184,1746431460098,-1835.12,0.0003726,14]
[359932185,1746431460108,-400.0,0.0003726,14]
[359932186,1746431460117,-3261.67,0.0003726,14]
[359932187,1746431460126,-1081.5,0.0003726,14]
[359932188,1746431460136,-6831.86,0.0003726,14]
[359932189,1746431460145,-400.0,0.0003726,14]
[359932190,1746431460155,-551.86,0.0003726,14]
[359932191,1746431460165,-423.41,0.0003726,14]
[359932192,1746431460175,-5354.805601,0.0003726,2]
[359932193,1746431460184,-400.0,0.0003726,14]
[359932194,1746431460194,-760.49,0.0003726,14]
[359932195,1746431460203,-5354.805601,0.0003726,2]
[359932196,1746431460213,-400.0,0.0003726,14]
[359932197,1746431460286,-3084.1,0.0003726,14]
[359932198,1746431460295,-3375.42,0.0003726,14]
[359932199,1746431460305,-537.19,0.0003726,14]
[359932200,1746431460314,-400.0,0.0003726,14]
[359932201,1746431460324,-400.0,0.0003726,14]
[359932202,1746431460333,-582.03,0.0003726,14]
[359932203,1746431460346,-561.7,0.0003726,14]
[359932204,1746431460355,-2861.16,0.0003726,14]
[359932205,1746431460364,-960.8,0.0003726,14]
[359932206,1746431460374,-1245.99,0.0003726,14]
[359932207,1746431460385,-319.76882407,0.0003726,14]
[359932208,1746431460395,-400.0,0.0003726,14]
[359932209,1746431460405,-400.0,0.0003726,14]
[359932210,1746431460416,-917.15,0.0003726,14]
[359932211,1746431460425,-798.63,0.0003726,14]
[359932212,1746431460434,-400.0,0.0003726,14]
[359932213,1746431460444,-2164.37,0.0003726,14]
[359932214,1746431460454,-1500.0,0.0003726,4]
[359932215,1746431460464,-1001.29243734,0.00037261,15]
[359932216,1746431460473,-378.0,0.00037302,2]
[359932217,1746431460483,-151.0,0.0003738,2]
[359932218,1746431460492,-207.4,0.0003738,2]
[359932219,1746431460501,-160.0,0.00037396,3]
[359932220,1746431460510,-4147.62816668,0.000375,30]
[359932221,1746431460520,-1000.0,0.00037521,5]
[359932222,1746431460529,-29937.92561954,0.00037534,3]
[359932223,1746431460538,-449.91,0.00037534,14]
[359932224,1746431460547,-400.0,0.00037534,14]
[359932225,1746431460557,-400.0,0.00037534,14]
[359932226,1746431460566,-400.0,0.00037534,14]
[359932227,1746431460576,-400.0,0.00037534,14]
[359932228,1746431460587,-296.73408255,0.00037534,14]
[359932229,1746431460596,-481.88119386,0.00037534,14]
[359932230,1746431460605,-400.0,0.00037534,14]
[359932231,1746431460615,-204.92742559,0.00037534,14]
[359932232,1746431460625,-198.089713,0.00037534,2]
[359932233,1746431460635,-151.0,0.00037534,14]
[359932234,1746431460644,-198.089713,0.00037534,2]
[359932235,1746431460653,-151.0,0.00037534,14]
[359932236,1746431460662,-620.35,0.00037534,14]
[359932237,1746431460672,-1058.09,0.00037534,14]
[359932238,1746431460681,-400.0,0.00037534,14]
[359932239,1746431460691,-413.91,0.00037534,14]
[359932240,1746431460700,-224.275852,0.00037534,14]
[359932241,1746431460709,-400.0,0.00037534,14]
[359932242,1746431460718,-224.275852,0.00037534,14]
[359932243,1746431460727,-400.0,0.00037534,14]
[359932244,1746431460737,-400.0,0.00037534,14]
[359932245,1746431460746,-400.0,0.00037534,14]
[359932246,1746431460763,-400.0,0.00037534,14]
[359932247,1746431460779,-400.0,0.00037534,14]
[359932248,1746431460796,-230.56087492,0.00037534,14]
[359932249,1746431460820,-496.92,0.00037534,14]
[359932250,1746431460839,-919.39,0.00037534,14]
[359932251,1746431460856,-400.0,0.00037534,14]
[359932252,1746431460874,-430.77,0.00037534,14]
[359932253,1746431460888,-567.54,0.00037534,14]
[359932254,1746431460904,-1065.94,0.00037534,2]
[359932255,1746431460922,-400.0,0.00037534,14]
[359932256,1746431460942,-160.12,0.00037534,14]
[359932257,1746431460957,-475.74,0.00037534,14]
[359932258,1746431460972,-1390.66,0.00037534,14]
[359932259,1746431460990,-400.0,0.00037534,14]
[359932260,1746431461004,-527.9805,0.00037534,14]
[359932261,1746431461019,-400.0,0.00037534,14]
[359932262,1746431461034,-244.82048979,0.00037534,14]
[359932263,1746431461049,-418.95,0.00037534,14]
[359932264,1746431461064,-689.44,0.00037534,14]
[359932265,1746431461079,-400.0,0.00037534,14]
[359932266,1746431461093,-400.0,0.00037534,14]
[359932267,1746431461108,-403.91,0.00037534,14]
[359932268,1746431461122,-400.0,0.00037534,14]
[359932269,1746431461137,-2422.87,0.00037534,14]
[359932270,1746431461151,-593.8,0.00037534,14]
[359932271,1746431461166,-400.0,0.00037534,14]
[359932272,1746431461180,-400.0,0.00037534,14]
[359932273,1746431461195,-400.0,0.00037534,14]
[359932274,1746431461210,-400.0,0.00037534,14]
[359932275,1746431461224,-874.22,0.00037534,14]
[359932276,1746431461238,-400.0,0.00037534,14]
[359932277,1746431461252,-467.43,0.00037534,14]
[359932278,1746431461267,-448.07336012,0.00037534,14]
[359932279,1746431461281,-151.0,0.00037534,14]
[359932280,1746431461295,-478.31,0.00037534,14]
[359932281,1746431461309,-201.54432032,0.00037534,14]
[359932282,1746431461323,-181.009595,0.00037534,14]
[359932283,1746431461337,-400.0,0.00037534,14]
[359932284,1746431461353,-400.0,0.00037534,14]
[359932285,1746431461367,-287.34104557,0.00037534,14]
[359932286,1746431461381,-444.04,0.00037534,14]
[359932287,1746431461396,-400.0,0.00037534,14]
[359932288,1746431461411,-518.59,0.00037534,14]
[359932289,1746431461426,-400.0,0.00037534,14]
[359932290,1746431461441,-1222.27,0.00037534,14]
[359932291,1746431461456,-400.0,0.00037534,14]
[359932292,1746431461470,-151.0,0.00037534,14]
[359932293,1746431461485,-1484.31,0.00037534,14]
[359932294,1746431461499,-1181.94,0.00037534,14]
[359932295,1746431461514,-400.0,0.00037534,14]
[359932296,1746431461616,-400.0,0.00037534,14]
[359932297,1746431461626,-2007.85,0.00037534,14]
[359932298,1746431461635,-400.0,0.00037534,14]
[359932299,1746431461645,-524.96,0.00037534,14]
[359932300,1746431461655,-676.94,0.00037534,14]
[359932301,1746431461664,-400.0,0.00037534,14]
[359932302,1746431461674,-594.21,0.00037534,14]
[359932303,1746431461684,-5636.69,0.00037534,14]
[359932304,1746431461694,-400.0,0.00037534,14]
[359932305,1746431461704,-400.0,0.00037534,14]
[359932306,1746431461713,-577.87,0.00037534,14]
[359932307,1746431461723,-2214.19,0.00037534,14]
[359932308,1746431461733,-439.27,0.00037534,14]
[359932309,1746431461743,-400.0,0.00037534,14]
[359932310,1746431461754,-601.23,0.00037534,14]
[359932311,1746431461765,-400.0,0.00037534,14]
[359932312,1746431461775,-400.0,0.00037534,14]
[359932313,1746431461784,-400.0,0.00037534,14]
[359932314,1746431461794,-402.72,0.00037534,14]
[359932315,1746431461804,-168.214865,0.00037534,14]
[359932316,1746431461814,-168.214865,0.00037534,14]
[359932317,1746431461825,-151.0,0.00037534,14]
[359932318,1746431461835,-533.19,0.00037534,14]
[359932319,1746431461845,-400.0,0.00037534,14]
[359932320,1746431461855,-657.78,0.00037534,14]
[359932321,1746431461865,-406.03,0.00037534,14]
[359932322,1746431461874,-3148.33,0.00037534,14]
[359932323,1746431461884,-400.0,0.00037534,14]
[359932324,1746431461894,-400.0,0.00037534,14]
[359932325,1746431461904,-400.0,0.00037534,14]
[359932326,1746431461914,-708.598573,0.00037534,14]
[359932327,1746431461924,-400.0,0.00037534,14]
[359932328,1746431461934,-708.598573,0.00037534,14]
[359932329,1746431461944,-400.0,0.00037534,14]
[359932330,1746431461954,-520.25,0.00037534,14]
[359932331,1746431461965,-1424.37,0.00037534,14]
[359932332,1746431461975,-400.0,0.00037534,14]
[359932333,1746431461984,-514.9,0.00037534,14]
[359932334,1746431461994,-2867.55,0.00037534,14]
[359932335,1746431462003,-471.11,0.00037534,14]
[359932336,1746431462014,-400.0,0.00037534,14]
[359932337,1746431462024,-727.17,0.00037534,14]
[359932338,1746431462034,-2092.45,0.00037534,14]
[359932339,1746431462043,-151.0,0.00037534,14]
[359932340,1746431462054,-1835.12,0.00037534,14]
[359932341,1746431462064,-400.0,0.00037534,14]
[359932342,1746431462073,-3261.67,0.00037534,14]
[359932343,1746431462083,-1081.5,0.00037534,14]
[359932344,1746431462093,-6831.86,0.00037534,14]
[359932345,1746431462103,-400.0,0.00037534,14]
[359932346,1746431462116,-551.86,0.00037534,14]
[359932347,1746431462126,-423.41,0.00037534,14]
[359932348,1746431462136,-400.0,0.00037534,14]
[359932349,1746431462146,-760.49,0.00037534,14]
[359932350,1746431462156,-187.76,0.00037534,14]
[359932351,1746431462167,-3084.1,0.00037534,14]
[359932352,1746431462177,-3375.42,0.00037534,14]
[359932353,1746431462186,-537.19,0.00037534,14]
[359932354,1746431462196,-400.0,0.00037534,14]
[359932355,1746431462206,-400.0,0.00037534,14]
[359932356,1746431462216,-582.03,0.00037534,14]
[359932357,1746431462225,-561.7,0.00037534,14]
[359932358,1746431462235,-2861.16,0.00037534,14]
[359932359,1746431462245,-151.0,0.00037534,14]
[359932360,1746431462254,-960.8,0.00037534,14]
[359932361,1746431462265,-151.0,0.00037534,14]
[359932362,1746431462276,-1245.99,0.00037534,14]
[359932363,1746431462286,-400.0,0.00037534,14]
[359932364,1746431462295,-917.15,0.00037534,14]
[359932365,1746431462306,-798.63,0.00037534,14]
[359932366,1746431462316,-2164.37,0.00037534,14]
[359932367,1746431462325,-749.37037271,0.0003759,37]
[359932368,1746431462335,-700.0,0.00037726,60]
[359932369,1746431462354,-153.56,0.000378,31]
[359932370,1746431462368,-153.56,0.000378,31]
[359932371,1746431462378,-153.56,0.000378,31]
[359932372,1746431462387,-153.56,0.000378,31]
[359932373,1746431462398,-153.56,0.000378,31]
[359932374,1746431462408,-449.91,0.00037808,14]
[359932375,1746431462419,-400.0,0.00037808,14]
[359932376,1746431462429,-400.0,0.00037808,14]
[359932377,1746431462439,-400.0,0.00037808,14]
[359932378,1746431462448,-400.0,0.00037808,14]
[359932379,1746431462458,-400.0,0.00037808,14]
[359932380,1746431462468,-620.35,0.00037808,14]
[359932381,1746431462477,-1058.09,0.00037808,14]
[359932382,1746431462487,-400.0,0.00037808,14]
[359932383,1746431462497,-413.91,0.00037808,14]
[359932384,1746431462507,-421.38017213,0.00037808,14]
[359932385,1746431462517,-428.74,0.00037808,14]
[359932386,1746431462527,-400.0,0.00037808,14]
[359932387,1746431462536,-400.0,0.00037808,14]
[359932388,1746431462546,-400.0,0.00037808,14]
[359932389,1746431462556,-400.0,0.00037808,14]
[359932390,1746431462567,-919.39,0.00037808,14]
[359932391,1746431462576,-400.0,0.00037808,14]
[359932392,1746431462586,-430.77,0.00037808,14]
[359932393,1746431462595,-567.54,0.00037808,14]
[359932394,1746431462605,-1065.94,0.00037808,2]
[359932395,1746431462615,-400.0,0.00037808,14]
[359932396,1746431462624,-151.0,0.00037808,14]
[359932397,1746431462633,-216.620776,0.00037808,14]
[359932398,1746431462645,-311.093798,0.00037808,14]
[359932399,1746431462655,-311.093798,0.00037808,14]
[359932400,1746431462665,-1390.66,0.00037808,14]
[359932401,1746431462675,-400.0,0.00037808,14]
[359932402,1746431462685,-400.0,0.00037808,14]
[359932403,1746431462700,-418.95,0.00037808,14]
[359932404,1746431462709,-689.44,0.00037808,14]
[359932405,1746431462719,-400.0,0.00037808,14]
[359932406,1746431462730,-400.0,0.00037808,14]
[359932407,1746431462739,-403.91,0.00037808,14]
[359932408,1746431462749,-400.0,0.00037808,14]
[359932409,1746431462759,-2422.87,0.00037808,14]
[359932410,1746431462769,-593.8,0.00037808,14]
[359932411,1746431462778,-438.10722946,0.00037808,14]
[359932412,1746431462789,-400.0,0.00037808,14]
[359932413,1746431462798,-400.0,0.00037808,14]
[359932414,1746431462809,-395.89,0.00037808,14]
[359932415,1746431462885,-874.22,0.00037808,14]
[359932416,1746431462895,-400.0,0.00037808,14]
[359932417,1746431462904,-216.647116,0.00037808,14]
[359932418,1746431462914,-324.406642,0.00037808,14]
[359932419,1746431462924,-324.406642,0.00037808,14]
[359932420,1746431462934,-175.388768,0.00037808,14]
[359932421,1746431462943,-175.388768,0.00037808,14]
[359932422,1746431462952,-467.43,0.00037808,14]
[359932423,1746431462962,-478.31,0.00037808,14]
[359932424,1746431462971,-400.0,0.00037808,14]
[359932425,1746431462981,-400.0,0.00037808,14]
[359932426,1746431462991,-444.04,0.00037808,14]
[359932427,1746431463001,-400.0,0.00037808,14]
[359932428,1746431463010,-518.59,0.00037808,14]
[359932429,1746431463020,-400.0,0.00037808,14]
[359932430,1746431463029,-1222.27,0.00037808,14]
[359932431,1746431463039,-400.0,0.00037808,14]
[359932432,1746431463049,-151.0,0.00037808,14]
[359932433,1746431463059,-1484.31,0.00037808,14]
[359932434,1746431463069,-1181.94,0.00037808,14]
[359932435,1746431463079,-400.0,0.00037808,14]
[359932436,1746431463089,-400.0,0.00037808,14]
[359932437,1746431463098,-151.0,0.00037808,14]
[359932438,1746431463108,-151.0,0.00037808,14]
[359932439,1746431463118,-2007.85,0.00037808,14]
[359932440,1746431463128,-400.0,0.00037808,14]
[359932441,1746431463138,-524.96,0.00037808,14]
[359932442,1746431463148,-676.94,0.00037808,14]
[359932443,1746431463158,-268.74465492,0.00037808,14]
[359932444,1746431463168,-819.404056,0.00037808,14]
[359932445,1746431463178,-594.21,0.00037808,14]
[359932446,1746431463188,-819.404056,0.00037808,14]
[359932447,1746431463198,-5636.69,0.00037808,14]
[359932448,1746431463208,-400.0,0.00037808,14]
[359932449,1746431463217,-281.80236848,0.00037808,14]
[359932450,1746431463227,-577.87,0.00037808,14]
[359932451,1746431463237,-253.131864,0.00037808,14]
[359932452,1746431463247,-2214.19,0.00037808,14]
[359932453,1746431463257,-253.131864,0.00037808,14]
[359932454,1746431463267,-439.27,0.00037808,14]
[359932455,1746431463277,-400.0,0.00037808,14]
[359932456,1746431463286,-601.23,0.00037808,14]
[359932457,1746431463295,-400.0,0.00037808,14]
[359932458,1746431463305,-400.0,0.00037808,14]
[359932459,1746431463314,-400.0,0.00037808,14]
[359932460,1746431463324,-402.72,0.00037808,14]
[359932461,1746431463333,-533.19,0.00037808,14]
[359932462,1746431463342,-400.0,0.00037808,14]
[359932463,1746431463363,-657.78,0.00037808,14]
[359932464,1746431463374,-3148.33,0.00037808,14]
[359932465,1746431463384,-400.0,0.00037808,14]
[359932466,1746431463394,-400.0,0.00037808,14]